fUSD/lending_fUSD_20250426
["ID","MTS","AMOUNT","RATE_DAILY","PERIOD"]
[359030941,1745662238480,-9975.54,0.00019793,2]
[359030943,1745662238496,-639.7,0.00019793,2]
[359030945,1745662238507,-500.0,0.00019793,2]
[359030948,1745662238518,-500.0,0.00019793,2]
[359030949,1745662238529,-500.0,0.00019793,2]
[359030951,1745662238540,-621.11,0.00019793,2]
[359030953,1745662238550,-500.0,0.00019793,2]
[359030955,1745662238560,-878.92,0.00019793,2]
[359030957,1745662238570,-500.0,0.00019793,2]
[359030959,1745662238581,-500.0,0.00019793,2]
[359030961,1745662238591,-500.0,0.00019793,2]
[359030963,1745662238602,-500.0,0.00019793,2]
[359030965,1745662238612,-791.26,0.00019793,2]
[359030967,1745662238622,-1044.38,0.00019793,2]
[359030969,1745662238633,-500.0,0.00019793,2]
[359030972,1745662238648,-782.65,0.00019793,2]
[359030974,1745662238658,-19360.609148,0.00019793,2]
[359030976,1745662238668,-620.66,0.00019793,2]
[359030978,1745662238680,-1090.13,0.00019793,2]
[359030980,1745662238690,-203.46038963,0.00019794,2]
[359030982,1745662238701,-500.0,0.00019794,2]
[359030984,1745662238710,-928.1,0.00019794,2]
[359030986,1745662238722,-533.59,0.00019794,2]
[359030988,1745662238732,-920.427672,0.00019794,2]
[359030990,1745662238742,-929.120235,0.00019794,2]
[359030992,1745662238752,-166.423983,0.00019794,2]
[359030994,1745662238763,-500.0,0.00019794,2]
[359030996,1745662238774,-500.0,0.00019794,2]
[359030998,1745662238784,-500.0,0.00019794,2]
[359031000,1745662238794,-570.66659642,0.00019794,2]
[359031002,1745662238807,-500.0,0.00019794,2]
[359031004,1745662238817,-500.0,0.00019794,2]
[359031006,1745662238827,-500.0,0.00019794,2]
[359031008,1745662238837,-500.0,0.00019794,2]
[359031010,1745662238847,-500.0,0.00019794,2]
[359031013,1745662238857,-1165.59,0.00019794,2]
[359031015,1745662238866,-500.0,0.00019794,2]
[359031017,1745662238876,-795.19,0.00019794,2]
[359031019,1745662238886,-500.0,0.00019794,2]
[359031021,1745662238896,-500.0,0.00019794,2]
[359031023,1745662238907,-500.0,0.00019794,2]
[359031025,1745662238918,-500.0,0.00019794,2]
[359031027,1745662238928,-500.0,0.00019794,2]
[359031030,1745662238943,-500.0,0.00019794,2]
[359031032,1745662238952,-500.0,0.00019794,2]
[359031034,1745662238962,-500.0,0.00019794,2]
[359031036,1745662238975,-563.42,0.00019794,2]
[359031038,1745662238985,-500.0,0.00019794,2]
[359031040,1745662238995,-500.0,0.00019794,2]
[359031042,1745662239007,-500.0,0.00019794,2]
[359031044,1745662239019,-500.0,0.00019794,2]
[359031046,1745662239030,-712.22,0.00019794,2]
[359031048,1745662239040,-500.0,0.00019794,2]
[359031049,1745662239051,-500.0,0.00019794,2]
[359031050,1745662239063,-500.0,0.00019794,2]
[359031051,1745662239073,-500.0,0.00019794,2]
[359031052,1745662239084,-500.0,0.00019794,2]
[359031053,1745662239094,-704.72,0.00019794,2]
[359031054,1745662239105,-500.0,0.00019794,2]
[359031055,1745662239116,-500.0,0.00019794,2]
[359031056,1745662239125,-500.0,0.00019794,2]
[359031057,1745662239136,-570.23,0.00019794,2]
[359031058,1745662239146,-500.0,0.00019794,2]
[359031059,1745662239158,-948.38,0.00019794,2]
[359031060,1745662239169,-780.34,0.00019794,2]
[359031061,1745662239182,-500.0,0.00019794,2]
[359031062,1745662239193,-500.0,0.00019794,2]
[359031063,1745662239203,-500.0,0.00019794,2]
[359031064,1745662239213,-500.0,0.00019794,2]
[359031065,1745662239223,-500.0,0.00019794,2]
[359031066,1745662239234,-835.85,0.00019794,2]
[359031067,1745662239245,-500.0,0.00019794,2]
[359031068,1745662239254,-500.0,0.00019794,2]
[359031069,1745662239265,-768.92,0.00019794,2]
[359031071,1745662239275,-282.3805587,0.00019794,2]
[359031073,1745662239285,-500.0,0.00019794,2]
[359031075,1745662239295,-601.77,0.00019794,2]
[359031078,1745662239306,-500.0,0.00019794,2]
[359031080,1745662239317,-805.79,0.00019794,2]
[359031082,1745662239328,-500.0,0.00019794,2]
[359031084,1745662239338,-500.0,0.00019794,2]
[359031086,1745662239348,-500.0,0.00019794,2]
[359031088,1745662239358,-699.44,0.00019794,2]
[359031090,1745662239370,-706.66,0.00019794,2]
[359031093,1745662239385,-500.0,0.00019794,2]
[359031095,1745662239395,-516.03,0.00019794,2]
[359031097,1745662239405,-512.23873472,0.00019794,2]
[359031099,1745662239416,-500.0,0.00019794,2]
[359031101,1745662239426,-500.0,0.00019794,2]
[359031103,1745662239437,-500.0,0.00019794,2]
[359031105,1745662239448,-591.33,0.00019794,2]
[359031107,1745662239459,-500.0,0.00019794,2]
[359031109,1745662239469,-500.0,0.00019794,2]
[359031112,1745662239480,-500.0,0.00019794,2]
[359031114,1745662239491,-573.85622897,0.00019794,2]
[359031116,1745662239502,-505.26182387,0.00019794,2]
[359031118,1745662239512,-500.0,0.00019794,2]
[359031120,1745662239524,-500.0,0.00019794,2]
[359031122,1745662239534,-500.0,0.00019794,2]
[359031124,1745662239544,-212.43030047,0.00019794,2]
[359031126,1745662239555,-500.0,0.00019794,2]
[359031128,1745662239565,-500.0,0.00019794,2]
[359031130,1745662239576,-500.0,0.00019794,2]
[359031132,1745662239586,-372.66249412,0.00019794,2]
[359031135,1745662239598,-904.55,0.00019794,2]
[359031137,1745662239609,-818.59,0.00019794,2]
[359031140,1745662239621,-500.0,0.00019794,2]
[359031142,1745662239631,-500.0,0.00019794,2]
[359031144,1745662239642,-644.38,0.00019794,2]
[359031146,1745662239652,-572.07166205,0.00019794,2]
[359031148,1745662239662,-500.0,0.00019794,2]
[359031150,1745662239673,-500.0,0.00019794,2]
[359031152,1745662239683,-500.0,0.00019794,2]
[359031154,1745662239693,-500.0,0.00019794,2]
[359031156,1745662239704,-231.56034593,0.00019794,2]
[359031158,1745662239716,-734.01,0.00019794,2]
[359031160,1745662239726,-500.0,0.00019794,2]
[359031162,1745662239736,-1179.37,0.00019794,2]
[359031164,1745662239747,-230.0,0.00019794,2]
[359031166,1745662239757,-709.9,0.00019794,2]
[359031168,1745662239768,-577.21,0.00019794,2]
[359031170,1745662239778,-500.0,0.00019794,2]
[359031172,1745662239788,-500.0,0.00019794,2]
[359031174,1745662239799,-500.0,0.00019794,2]
[359031176,1745662239810,-500.0,0.00019794,2]
[359031178,1745662239821,-1407.75,0.00019794,2]
[359031180,1745662239832,-500.0,0.00019794,2]
[359031182,1745662239843,-500.0,0.00019794,2]
[359031184,1745662239853,-552.20623637,0.00019794,2]
[359031187,1745662239864,-500.0,0.00019794,2]
[359031189,1745662239874,-643.9,0.00019794,2]
[359031191,1745662239884,-500.0,0.00019794,2]
[359031193,1745662239894,-500.0,0.00019794,2]
[359031195,1745662239905,-599.86,0.00019794,2]
[359031197,1745662239915,-500.0,0.00019794,2]
[359031199,1745662239925,-500.0,0.00019794,2]
[359031201,1745662239935,-500.0,0.00019794,2]
[359031203,1745662239944,-500.0,0.00019794,2]
[359031205,1745662239954,-500.0,0.00019794,2]
[359031207,1745662239964,-1321.81,0.00019794,2]
[359031209,1745662239976,-500.0,0.00019794,2]
[359031211,1745662239986,-500.0,0.00019794,2]
[359031213,1745662239996,-500.0,0.00019794,2]
[359031215,1745662240007,-500.0,0.00019794,2]
[359031217,1745662240017,-500.0,0.00019794,2]
[359031219,1745662240027,-500.0,0.00019794,2]
[359031221,1745662240037,-500.0,0.00019794,2]
[359031223,1745662240047,-485.82820109,0.00019794,2]
[359031226,1745662240059,-500.0,0.00019794,2]
[359031228,1745662240070,-500.0,0.00019794,2]
[359031230,1745662240079,-1106.14,0.00019794,2]
[359031232,1745662240089,-500.0,0.00019794,2]
[359031235,1745662240108,-500.0,0.00019794,2]
[359031237,1745662240122,-500.0,0.00019794,2]
[359031239,1745662240133,-500.0,0.00019794,2]
[359031241,1745662240143,-500.0,0.00019794,2]
[359031243,1745662240154,-500.0,0.00019794,2]
[359031245,1745662240164,-500.0,0.00019794,2]
[359031248,1745662240175,-500.0,0.00019794,2]
[359031250,1745662240185,-500.0,0.00019794,2]
[359031252,1745662240195,-500.0,0.00019794,2]
[359031254,1745662240205,-500.0,0.00019794,2]
[359031256,1745662240216,-555.40481915,0.00019794,2]
[359031258,1745662240226,-500.0,0.00019794,2]
[359031260,1745662240237,-1052.83,0.00019794,2]
[359031262,1745662240247,-501.83571387,0.00019794,2]
[359031264,1745662240258,-1187.93,0.00019794,2]
[359031266,1745662240269,-500.0,0.00019794,2]
[359031268,1745662240280,-530.66335049,0.00019794,2]
[359031270,1745662240290,-500.0,0.00019794,2]
[359031273,1745662240301,-500.0,0.00019794,2]
[359031275,1745662240311,-509.98689018,0.00019794,2]
[359031277,1745662240322,-751.24,0.00019794,2]
[359031279,1745662240332,-500.0,0.00019794,2]
[359031281,1745662240342,-500.0,0.00019794,2]
[359031283,1745662240352,-500.0,0.00019794,2]
[359031285,1745662240363,-282.97046141,0.00019794,2]
[359031287,1745662240373,-900.87,0.00019794,2]
[359031289,1745662240383,-500.0,0.00019794,2]
[359031291,1745662240394,-500.0,0.00019794,2]
[359031293,1745662240405,-500.0,0.00019794,2]
[359031295,1745662240415,-500.0,0.00019794,2]
[359031298,1745662240426,-500.0,0.00019794,2]
[359031300,1745662240436,-500.0,0.00019794,2]
[359031302,1745662240446,-500.0,0.00019794,2]
[359031304,1745662240456,-500.0,0.00019794,2]
[359031306,1745662240466,-188.26996527,0.00019794,2]
[359031308,1745662240476,-678.99,0.00019794,2]
[359031310,1745662240486,-500.0,0.00019794,2]
[359031312,1745662240496,-537.98,0.00019794,2]
[359031314,1745662240506,-519.95197459,0.00019794,2]
[359031316,1745662240516,-500.0,0.00019794,2]
[359031318,1745662240526,-291.35508885,0.00019794,2]
[359031320,1745662240541,-727.05,0.00019794,2]
[359031322,1745662240551,-1100.2,0.00019794,2]
[359031324,1745662240562,-500.0,0.00019794,2]
[359031326,1745662240572,-500.0,0.00019794,2]
[359031328,1745662240584,-500.0,0.00019794,2]
[359031330,1745662240595,-500.0,0.00019794,2]
[359031332,1745662240607,-500.0,0.00019794,2]
[359031334,1745662240617,-500.0,0.00019794,2]
[359031336,1745662240628,-758.63,0.00019794,2]
[359031338,1745662240638,-500.0,0.00019794,2]
[359031340,1745662240648,-500.0,0.00019794,2]
[359031342,1745662240659,-566.63084856,0.00019794,2]
[359031344,1745662240669,-500.0,0.00019794,2]
[359031346,1745662240680,-500.0,0.00019794,2]
[359031348,1745662240690,-500.0,0.00019794,2]
[359031350,1745662240700,-500.0,0.00019794,2]
[359031352,1745662240710,-500.0,0.00019794,2]
[359031354,1745662240720,-500.0,0.00019794,2]
[359031356,1745662240730,-500.0,0.00019794,2]
[359031358,1745662240741,-618.1,0.00019794,2]
[359031359,1745662240751,-500.0,0.00019794,2]
[359031360,1745662240761,-500.0,0.00019794,2]
[359031361,1745662240771,-500.0,0.00019794,2]
[359031362,1745662240780,-500.0,0.00019794,2]
[359031363,1745662240790,-592.14,0.00019794,2]
[359031364,1745662240800,-838.52,0.00019794,2]
[359031365,1745662240810,-566.68953543,0.00019794,2]
[359031366,1745662240820,-301.43174129,0.00019794,2]
[359031367,1745662240830,-500.0,0.00019794,2]
[359031368,1745662240840,-738.84,0.00019794,2]
[359031369,1745662240851,-500.0,0.00019794,2]
[359031370,1745662240860,-1230.92,0.00019794,2]
[359031371,1745662240870,-500.0,0.00019794,2]
[359031372,1745662240880,-500.0,0.00019794,2]
[359031373,1745662240890,-500.0,0.00019794,2]
[359031374,1745662240899,-500.0,0.00019794,2]
[359031375,1745662240909,-500.0,0.00019794,2]
[359031376,1745662240917,-571.71,0.00019794,2]
[359031377,1745662240927,-500.0,0.00019794,2]
[359031378,1745662240937,-808.61,0.00019794,2]
[359031379,1745662240948,-508.59,0.00019794,2]
[359031380,1745662240958,-515.0662409,0.00019794,2]
[359031381,1745662240969,-678.36,0.00019794,2]
[359031382,1745662240992,-500.0,0.00019794,2]
[359031383,1745662241003,-581.12776466,0.00019794,2]
[359031384,1745662241013,-500.0,0.00019794,2]
[359031385,1745662241023,-500.0,0.00019794,2]
[359031386,1745662241033,-500.0,0.00019794,2]
[359031387,1745662241043,-527.5,0.00019794,2]
[359031388,1745662241054,-500.0,0.00019794,2]
[359031389,1745662241064,-791.67,0.00019794,2]
[359031390,1745662241075,-504.70218689,0.00019794,2]
[359031391,1745662241084,-182.35493135,0.00019794,2]
[359031392,1745662241094,-873.14,0.00019794,2]
[359031393,1745662241104,-550.57996944,0.00019794,2]
[359031394,1745662241114,-801.61,0.00019794,2]
[359031395,1745662241125,-1000.0,0.00019794,2]
[359031396,1745662241135,-500.0,0.00019794,2]
[359031397,1745662241145,-500.0,0.00019794,2]
[359031398,1745662241156,-534.83972305,0.00019794,2]
[359031399,1745662241166,-500.0,0.00019794,2]
[359031400,1745662241177,-500.0,0.00019794,2]
[359031401,1745662241188,-507.52583489,0.00019794,2]
[359031402,1745662241197,-156.95760552,0.00019794,2]
[359031403,1745662241208,-500.0,0.00019794,2]
[359031404,1745662241218,-500.0,0.00019794,2]
[359031405,1745662241228,-500.0,0.00019794,2]
[359031406,1745662241238,-758.45,0.00019794,2]
[359031407,1745662241249,-500.0,0.00019794,2]
[359031408,1745662241258,-500.0,0.00019794,2]
[359031409,1745662241269,-500.0,0.00019794,2]
[359031410,1745662241278,-500.0,0.00019794,2]
[359031411,1745662241288,-500.0,0.00019794,2]
[359031412,1745662241298,-855.56,0.00019794,2]
[359031413,1745662241308,-500.0,0.00019794,2]
[359031414,1745662241318,-500.0,0.00019794,2]
[359031415,1745662241329,-719.52,0.00019794,2]
[359031416,1745662241339,-500.0,0.00019794,2]
[359031417,1745662241349,-1463.61,0.00019794,2]
[359031418,1745662241359,-500.0,0.00019794,2]
[359031419,1745662241369,-500.0,0.00019794,2]
[359031420,1745662241379,-500.0,0.00019794,2]
[359031421,1745662241390,-500.0,0.00019794,2]
[359031422,1745662241400,-500.0,0.00019794,2]
[359031423,1745662241410,-500.0,0.00019794,2]
[359031424,1745662241421,-509.68329933,0.00019794,2]
[359031425,1745662241437,-500.0,0.00019794,2]
[359031426,1745662241447,-663.92,0.00019794,2]
[359031427,1745662241457,-755.84,0.00019794,2]
[359031428,1745662241468,-500.0,0.00019794,2]
[359031429,1745662241478,-500.0,0.00019794,2]
[359031430,1745662241488,-500.0,0.00019794,2]
[359031431,1745662241498,-541.71968747,0.00019794,2]
[359031432,1745662241508,-500.0,0.00019794,2]
[359031433,1745662241519,-500.0,0.00019794,2]
[359031434,1745662241530,-150.0,0.00019794,2]
[359031435,1745662241542,-414.0860473,0.00019794,2]
[359031436,1745662241551,-500.0,0.00019794,2]
[359031437,1745662241561,-129020.46,0.00019794,2]
[359031438,1745662241570,-500.0,0.00019794,2]
[359031439,1745662241581,-500.0,0.00019794,2]
[359031440,1745662241591,-500.0,0.00019794,2]
[359031441,1745662241602,-2957.0,0.00019794,2]
[359031442,1745662241612,-4832.09,0.00019794,2]
[359031443,1745662241622,-500.0,0.00019794,2]
[359031444,1745662241632,-500.0,0.00019794,2]
[359031445,1745662241643,-500.0,0.00019794,2]
[359031446,1745662241657,-500.0,0.00019794,2]
[359031447,1745662241666,-500.0,0.00019794,2]
[359031448,1745662241677,-500.0,0.00019794,2]
[359031449,1745662241687,-611.11,0.00019794,2]
[359031450,1745662241697,-14505.77,0.00019794,2]
[359031451,1745662241707,-500.0,0.00019794,2]
[359031452,1745662241716,-500.0,0.00019794,2]
[359031453,1745662241725,-500.0,0.00019794,2]
[359031454,1745662241735,-500.0,0.00019794,2]
[359031455,1745662241747,-500.0,0.00019794,2]
[359031456,1745662241759,-179.49834234,0.00019794,2]
[359031457,1745662241770,-500.0,0.00019794,2]
[359031458,1745662241780,-500.0,0.00019794,2]
[359031459,1745662241790,-7493.86,0.00019794,2]
[359031460,1745662241800,-488.63984821,0.00019794,2]
[359031461,1745662241809,-500.0,0.00019794,2]
[359031462,1745662241819,-524.12,0.00019794,2]
[359031463,1745662241830,-500.0,0.00019794,2]
[359031464,1745662241842,-500.0,0.00019794,2]
[359031465,1745662241852,-500.0,0.00019794,2]
[359031466,1745662241863,-500.0,0.00019794,2]
[359031467,1745662241875,-2871.32,0.00019794,2]
[359031468,1745662241885,-500.0,0.00019794,2]
[359031469,1745662241896,-1185.68,0.00019794,2]
[359031470,1745662241906,-500.0,0.00019794,2]
[359031471,1745662241918,-763.64,0.00019794,2]
[359031472,1745662241929,-641.69,0.00019794,2]
[359031473,1745662241941,-522.74,0.00019794,2]
[359031474,1745662241952,-500.0,0.00019794,2]
[359031475,1745662241962,-500.0,0.00019794,2]
[359031476,1745662241974,-500.0,0.00019794,2]
[359031477,1745662241985,-520.38,0.00019794,2]
[359031478,1745662241996,-507.8992,0.00019794,2]
[359031479,1745662242007,-504.09126627,0.00019794,2]
[359031480,1745662242019,-577.12,0.00019794,2]
[359031481,1745662242030,-500.0,0.00019794,2]
[359031482,1745662242042,-508.88931414,0.00019794,2]
[359031483,1745662242055,-500.0,0.00019794,2]
[359031484,1745662242067,-749.97,0.00019794,2]
[359031485,1745662242077,-611.23,0.00019794,2]
[359031486,1745662242088,-6551.14,0.00019794,2]
[359031487,1745662242098,-500.0,0.00019794,2]
[359031488,1745662242108,-293.62364312,0.00019794,2]
[359031489,1745662242118,-673.66,0.00019794,2]
[359031490,1745662242443,-500.0,0.00019794,2]
[359031491,1745662242453,-500.0,0.00019794,2]
[359031492,1745662242463,-512.53306007,0.00019794,2]
[359031493,1745662242473,-500.0,0.00019794,2]
[359031494,1745662242483,-500.0,0.00019794,2]
[359031495,1745662242494,-529.7,0.00019794,2]
[359031496,1745662242504,-1097.08,0.00019794,2]
[359031497,1745662242515,-500.0,0.00019794,2]
[359031498,1745662242524,-940.29,0.00019794,2]
[359031499,1745662242535,-500.0,0.00019794,2]
[359031501,1745662242545,-500.0,0.00019794,2]
[359031502,1745662242557,-662.98,0.00019794,2]
[359031503,1745662242567,-505.91188564,0.00019794,2]
[359031504,1745662242576,-900.35,0.00019794,2]
[359031505,1745662242587,-4135.02,0.00019794,2]
[359031506,1745662242596,-868.23,0.00019794,2]
[359031507,1745662242606,-648.61,0.00019794,2]
[359031508,1745662242616,-500.0,0.00019794,2]
[359031509,1745662242625,-697.67,0.00019794,2]
[359031510,1745662242637,-631.12927936,0.00019794,2]
[359031511,1745662242647,-500.0,0.00019794,2]
[359031512,1745662242657,-682.19,0.00019794,2]
[359031513,1745662242668,-500.0,0.00019794,2]
[359031514,1745662242679,-500.0,0.00019794,2]
[359031515,1745662242690,-500.0,0.00019794,2]
[359031516,1745662242700,-818.06,0.00019794,2]
[359031517,1745662242712,-137499.14,0.00019794,2]
[359031518,1745662242722,-500.0,0.00019794,2]
[359031519,1745662242732,-931.29,0.00019794,2]
[359031520,1745662242743,-500.0,0.00019794,2]
[359031521,1745662242753,-500.0,0.00019794,2]
[359031522,1745662242762,-500.0,0.00019794,2]
[359031523,1745662242772,-666.13,0.00019794,2]
[359031524,1745662242781,-559.23829172,0.00019794,2]
[359031525,1745662242791,-734.7,0.00019794,2]
[359031526,1745662242800,-500.0,0.00019794,2]
[359031527,1745662242810,-500.0,0.00019794,2]
[359031528,1745662242820,-597.0,0.00019794,2]
[359031529,1745662242831,-500.0,0.00019794,2]
[359031530,1745662242840,-500.0,0.00019794,2]
[359031531,1745662242850,-516.63,0.00019794,2]
[359031532,1745662242860,-500.56,0.00019794,2]
[359031533,1745662242869,-559.51,0.00019794,2]
[359031534,1745662242878,-500.0,0.00019794,2]
[359031535,1745662242888,-500.0,0.00019794,2]
[359031536,1745662242898,-875.03,0.00019794,2]
[359031537,1745662242907,-500.0,0.00019794,2]
[359031538,1745662242917,-577.18,0.00019794,2]
[359031539,1745662242926,-724.91,0.00019794,2]
[359031540,1745662242935,-565.84,0.00019794,2]
[359031541,1745662242946,-500.0,0.00019794,2]
[359031542,1745662242956,-500.0,0.00019794,2]
[359031543,1745662242966,-866.49,0.00019794,2]
[359031544,1745662242977,-1009.78,0.00019794,2]
[359031545,1745662242986,-500.0,0.00019794,2]
[359031546,1745662242996,-500.0,0.00019794,2]
[359031547,1745662243006,-563.3021946,0.00019794,2]
[359031548,1745662243015,-600.83,0.00019794,2]
[359031549,1745662243025,-575.17,0.00019794,2]
[359031550,1745662243035,-500.0,0.00019794,2]
[359031551,1745662243045,-1159.16,0.00019794,2]
[359031552,1745662243056,-150.0,0.00019794,2]
[359031553,1745662243066,-500.0,0.00019794,2]
[359031554,1745662243076,-150.0,0.00019794,2]
[359031555,1745662243086,-554.55,0.00019794,2]
[359031556,1745662243095,-500.0,0.00019794,2]
[359031557,1745662243105,-500.0,0.00019794,2]
[359031558,1745662243115,-500.0,0.00019794,2]
[359031559,1745662243124,-500.0,0.00019794,2]
[359031560,1745662243134,-850.47,0.00019794,2]
[359031561,1745662243144,-500.0,0.00019794,2]
[359031562,1745662243154,-922.99,0.00019794,2]
[359031563,1745662243164,-502.8,0.00019794,2]
[359031564,1745662243174,-500.0,0.00019794,2]
[359031565,1745662243184,-500.0,0.00019794,2]
[359031566,1745662243194,-500.0,0.00019794,2]
[359031567,1745662243204,-500.0,0.00019794,2]
[359031568,1745662243215,-591.1,0.00019794,2]
[359031569,1745662243224,-500.0,0.00019794,2]
[359031570,1745662243234,-500.0,0.00019794,2]
[359031571,1745662243244,-1346.4,0.00019794,2]
[359031572,1745662243254,-500.0,0.00019794,2]
[359031573,1745662243263,-2101.0,0.00019794,2]
[359031574,1745662243274,-897.23,0.00019794,2]
[359031575,1745662243284,-505.69867225,0.00019794,2]
[359031576,1745662243293,-500.0,0.00019794,2]
[359031577,1745662243303,-500.0,0.00019794,2]
[359031578,1745662243313,-731.85,0.00019794,2]
[359031579,1745662243323,-605.79,0.00019794,2]
[359031580,1745662243332,-500.0,0.00019794,2]
[359031581,1745662243342,-500.0,0.00019794,2]
[359031582,1745662243352,-500.0,0.00019794,2]
[359031583,1745662243361,-765.54,0.00019794,2]
[359031584,1745662243371,-2022.66,0.00019794,2]
[359031585,1745662243381,-500.0,0.00019794,2]
[359031586,1745662243391,-251.91403498,0.00019794,2]
[359031587,1745662243401,-500.0,0.00019794,2]
[359031588,1745662243410,-1375.91,0.00019794,2]
[359031589,1745662243419,-500.0,0.00019794,2]
[359031590,1745662243430,-944.47,0.00019794,2]
[359031591,1745662243440,-500.0,0.00019794,2]
[359031592,1745662243451,-1111.31,0.00019794,2]
[359031593,1745662243460,-1171.6,0.00019794,2]
[359031594,1745662243470,-500.0,0.00019794,2]
[359031595,1745662243480,-500.0,0.00019794,2]
[359031596,1745662243490,-664.46,0.00019794,2]
[359031597,1745662243500,-910.13,0.00019794,2]
[359031598,1745662243510,-882.94,0.00019794,2]
[359031599,1745662243519,-500.0,0.00019794,2]
[359031600,1745662243530,-500.0,0.00019794,2]
[359031601,1745662243540,-500.0,0.00019794,2]
[359031602,1745662243550,-1421.24,0.00019794,2]
[359031603,1745662243560,-831.01,0.00019794,2]
[359031604,1745662243570,-712.37,0.00019794,2]
[359031605,1745662243579,-500.0,0.00019794,2]
[359031606,1745662243590,-500.0,0.00019794,2]
[359031607,1745662243599,-500.0,0.00019794,2]
[359031608,1745662243610,-500.0,0.00019794,2]
[359031609,1745662243620,-843.11,0.00019794,2]
[359031610,1745662243630,-1423.08,0.00019794,2]
[359031611,1745662243640,-500.0,0.00019794,2]
[359031612,1745662243652,-500.0,0.00019794,2]
[359031613,1745662243662,-567.71,0.00019794,2]
[359031614,1745662243673,-525.05927481,0.00019794,2]
[359031615,1745662243683,-500.0,0.00019794,2]
[359031616,1745662243694,-500.0,0.00019794,2]
[359031617,1745662243705,-150.0,0.00019794,2]
[359031618,1745662243715,-500.0,0.00019794,2]
[359031619,1745662243727,-612.39,0.00019794,2]
[359031620,1745662243737,-500.0,0.00019794,2]
[359031621,1745662243747,-150.0,0.00019794,2]
[359031622,1745662243757,-822.73,0.00019794,2]
[359031623,1745662243767,-4103.31,0.00019794,2]
[359031624,1745662243777,-500.0,0.00019794,2]
[359031625,1745662243786,-1192.0,0.00019794,2]
[359031626,1745662243796,-152.86850693,0.00019794,2]
[359031627,1745662243806,-892.06,0.00019794,2]
[359031628,1745662243816,-500.0,0.00019794,2]
[359031629,1745662243826,-150.0,0.00019794,2]
[359031630,1745662243835,-150.0,0.00019794,2]
[359031631,1745662243845,-500.0,0.00019794,2]
[359031632,1745662243855,-500.0,0.00019794,2]
[359031633,1745662243864,-150.0,0.00019794,2]
[359031634,1745662243875,-540.59212129,0.00019794,2]
[359031635,1745662243884,-1026.15,0.00019794,2]
[359031636,1745662243894,-500.0,0.00019794,2]
[359031637,1745662243904,-500.0,0.00019794,2]
[359031638,1745662243914,-500.0,0.00019794,2]
[359031639,1745662243923,-500.0,0.00019794,2]
[359031640,1745662243933,-795.82,0.00019794,2]
[359031641,1745662243943,-500.0,0.00019794,2]
[359031642,1745662243953,-650.12,0.00019794,2]
[359031643,1745662243962,-500.0,0.00019795,2]
[359031644,1745662243973,-500.0,0.00019795,2]
[359031645,1745662243986,-500.0,0.00019795,2]
[359031646,1745662243996,-500.0,0.00019795,2]